bitfinex/quotes_BTCUSD_20250922
["timestamp","ask_amount","ask_price","bid_price","bid_amount"]
[1758557535015,0.97908066,112970.0,112960.0,0.02884]
[1758557535235,0.82909843,112970.0,112960.0,0.02884]
[1758557535449,1.26052066,112970.0,112960.0,0.02884]
[1758557538364,0.97908066,112970.0,112960.0,0.02884]
[1758557538589,1.26052066,112970.0,112960.0,0.02884]
[1758557545016,0.97908066,112970.0,112960.0,0.02884]
[1758557545396,1.26048066,112970.0,112960.0,0.02884]
[1758557546268,0.54765843,112970.0,112960.0,0.02884]
[1758557546691,0.03062028,112970.0,112960.0,0.22271518]
[1758557546899,0.344,112970.0,112960.0,0.20589382]
[1758557547522,0.344,112970.0,112960.0,0.20489382]
[1758557547902,0.34,112970.0,112960.0,0.29016349]
[1758557548339,0.9164747,112980.0,112970.0,0.17703815]
[1758557548340,0.97506052,112980.0,112970.0,0.17703815]
[1758557548517,1.22984471,112980.0,112970.0,0.17916815]
[1758557548705,1.22984471,112980.0,112970.0,0.20581815]
[1758557548916,1.07943519,112980.0,112970.0,0.20581815]
[1758557549111,0.36661296,112980.0,112970.0,0.20581815]
[1758557549532,0.79803519,112980.0,112970.0,0.20581815]
[1758557549730,0.36661296,112980.0,112970.0,0.20981815]
[1758557549925,0.79803519,112980.0,112970.0,0.20981815]
[1758557550131,0.36661296,112980.0,112970.0,0.20981815]
[1758557550536,0.97505767,112980.0,112970.0,0.21581815]
[1758557551152,0.54363544,112980.0,112970.0,0.03878]
[1758557551366,0.97505767,112980.0,112970.0,0.03878]
[1758557551581,0.97505767,112980.0,112970.0,0.21581815]
[1758557552478,0.54363544,112980.0,112970.0,0.21581815]
[1758557552706,0.79803519,112980.0,112970.0,0.21581815]
[1758557552929,0.79803519,112980.0,112970.0,0.30108782]
[1758557553880,0.36661296,112980.0,112970.0,0.30108782]
[1758557555148,0.34,112980.0,112970.0,0.58240782]
[1758557556103,0.33992,112980.0,112970.0,0.58240782]
[1758557556594,0.33992,112980.0,112970.0,0.30108782]
[1758557557226,0.33992,112980.0,112970.0,0.58240782]
[1758557557976,0.33992,112980.0,112970.0,0.30108782]
[1758557558208,0.33992,112980.0,112970.0,0.58240782]
[1758557560922,0.33992,112980.0,112970.0,0.30108782]
[1758557561302,0.33992,112980.0,112970.0,0.58240782]
[1758557561893,0.33992,112980.0,112970.0,0.58236782]
[1758557562332,0.02661046,112990.0,112980.0,0.17702248]
[1758557562539,0.01471276,113000.0,112990.0,0.17700681]
[1758557562742,0.04131996,113000.0,112990.0,0.54568648]
[1758557562945,0.38131996,113000.0,112990.0,0.57233648]
[1758557563409,0.81274219,113000.0,112990.0,0.29105648]
[1758557563816,0.81274219,113000.0,112990.0,0.57233648]
[1758557564254,0.38131996,113000.0,112990.0,0.29705648]
[1758557564489,0.81274219,113000.0,112990.0,0.57833648]
[1758557565338,0.38131996,113000.0,112990.0,0.57833648]
[1758557565551,0.35471276,113000.0,112990.0,0.58133648]
[1758557567512,0.35471276,113000.0,112990.0,0.30005648]
[1758557567843,0.45802676,113010.0,112990.0,0.30005648]
[1758557568063,0.63500224,113010.0,113000.0,0.57015082]
[1758557568284,0.63500224,113010.0,113000.0,0.29104082]
[1758557568499,0.63500224,113010.0,113000.0,0.57228082]
[1758557568732,0.45802676,113010.0,113000.0,0.29104082]
[1758557568957,0.45802676,113010.0,113000.0,0.57228082]
[1758557569757,0.48117702,113010.0,113000.0,0.57228082]
[1758557570114,0.48117702,113010.0,113000.0,0.29104082]
[1758557570306,0.48117702,113010.0,113000.0,0.57228082]
[1758557570644,0.45802676,113010.0,113000.0,0.57228082]
[1758557571066,0.43142223,113010.0,113000.0,0.57228082]
[1758557571302,0.85392583,113020.0,113010.0,0.17697548]
[1758557571505,1.28737499,113020.0,113010.0,0.17697548]
[1758557571716,1.28975499,113020.0,113000.0,0.28991082]
[1758557571956,0.36863146,113020.0,113000.0,0.54446082]
[1758557572175,0.04913145,113020.0,113010.0,0.20575548]
[1758557572381,0.04913145,113020.0,113010.0,0.29102515]
[1758557572582,0.02652692,113020.0,113010.0,0.29102515]
[1758557572783,0.02252692,113020.0,113010.0,0.29102515]
[1758557572998,0.02252692,113020.0,113010.0,0.35642739]
[1758557573203,0.02652692,113020.0,113010.0,0.35642739]
[1758557573427,0.02252692,113020.0,113010.0,0.35642739]
[1758557574249,0.03079606,113020.0,113010.0,0.63762739]
[1758557574501,0.03079606,113020.0,113010.0,0.35642739]
[1758557574742,0.03079606,113020.0,113010.0,0.63762739]
[1758557574964,0.03079606,113020.0,113010.0,0.35742739]
[1758557575130,0.03079606,113020.0,113010.0,0.63862739]
[1758557577070,0.00831607,113020.0,113010.0,0.63862739]
[1758557579903,0.00831607,113020.0,113010.0,0.63858739]
[1758557580109,0.00831607,113020.0,113010.0,0.35742739]
[1758557580658,0.00831607,113020.0,113010.0,0.63854739]
[1758557581324,0.01451133,113020.0,113010.0,0.63854739]
[1758557582924,0.01451133,113020.0,113010.0,0.35742739]
[1758557583252,0.33769608,113020.0,113010.0,0.63854739]
[1758557584080,0.01451133,113020.0,113010.0,0.63854739]
[1758557585096,0.01451133,113020.0,113010.0,0.67520971]
[1758557585306,0.01451223,113020.0,113010.0,0.63854739]
[1758557585509,0.01451223,113020.0,113010.0,1.05869929]
[1758557585747,0.00831607,113020.0,113010.0,1.10869929]
[1758557586178,4.693e-05,113020.0,113010.0,1.1352954]
[1758557586429,0.00624238,113020.0,113010.0,0.8541754]
[1758557586653,0.00624238,113020.0,113010.0,1.2309354]
[1758557586870,0.00624238,113020.0,113010.0,0.8541754]
[1758557587076,0.00624238,113020.0,113010.0,1.2409354]
[1758557587322,0.00624238,113020.0,113010.0,0.8641754]
[1758557587523,0.01450481,113020.0,113010.0,1.2399354]
[1758557587708,0.01450481,113020.0,113010.0,0.8631754]
[1758557587934,0.01450481,113020.0,113010.0,1.2448954]
[1758557588380,0.66285431,113020.0,113010.0,0.62372739]
[1758557588620,0.65459188,113020.0,113010.0,0.62372739]
[1758557588828,0.65459188,113020.0,113010.0,0.36775739]
[1758557588829,0.33140713,113020.0,113010.0,0.36775739]
[1758557589055,0.32942713,113020.0,113010.0,0.65181739]
[1758557589279,0.00624238,113020.0,113010.0,0.65181739]
[1758557589493,4.693e-05,113020.0,113010.0,0.65181739]
[1758557589708,4.693e-05,113020.0,113010.0,0.68196929]
[1758557591391,4.693e-05,113020.0,113010.0,0.40088929]
[1758557591603,4.693e-05,113020.0,113010.0,0.77756929]
[1758557592231,0.00624547,113020.0,113010.0,0.77756929]
[1758557594146,0.00624547,113020.0,113010.0,0.82756929]
[1758557594339,0.00624547,113020.0,113010.0,1.21756929]
[1758557594750,4.693e-05,113020.0,113010.0,1.21756929]
[1758557594989,4.693e-05,113020.0,113010.0,0.84088929]
[1758557595206,4.693e-05,113020.0,113010.0,1.21756929]
[1758557595805,4.693e-05,113020.0,113010.0,1.24416413]
[1758557597297,4.693e-05,113020.0,113010.0,1.14852413]
[1758557597509,4.693e-05,113020.0,113010.0,1.24416413]
[1758557597729,4.693e-05,113020.0,113010.0,1.24412413]
[1758557599931,4.693e-05,113020.0,113010.0,0.86748413]
[1758557600133,4.693e-05,113020.0,113010.0,1.24412413]
[1758557601604,4.693e-05,113020.0,113010.0,0.87614945]
[1758557601789,0.00625233,113020.0,113010.0,1.25278945]
[1758557601999,0.00625233,113020.0,113010.0,1.20278945]
[1758557602211,0.00837233,113020.0,113010.0,0.74657461]
[1758557602428,0.33155708,113020.0,113010.0,0.35340271]
[1758557602660,0.00837233,113020.0,113010.0,0.73004271]
[1758557602878,0.00837233,113020.0,113010.0,0.78392461]
[1758557603110,0.00837233,113020.0,113010.0,0.78695461]
[1758557603328,0.00837233,113020.0,113010.0,0.76019461]
[1758557603542,0.33155708,113020.0,113010.0,0.62573739]
[1758557603755,0.00837233,113020.0,113010.0,0.72137739]
[1758557604640,0.00837233,113020.0,113010.0,0.74813739]
[1758557605060,0.00837233,113020.0,113010.0,0.37149739]
[1758557605294,0.00837233,113020.0,113010.0,0.74813739]
[1758557605668,0.00837233,113020.0,113010.0,0.62569739]
[1758557605872,0.00837233,113020.0,113010.0,0.62360739]
[1758557606074,0.35167708,113020.0,113010.0,0.62360739]
[1758557606504,0.02849233,113020.0,113010.0,0.62360739]
[1758557606743,0.02849233,113020.0,113010.0,0.34264739]
[1758557606859,0.02849233,113020.0,113010.0,0.62360739]
[1758557607252,0.45717233,113020.0,113010.0,0.62360739]
[1758557607475,0.45717233,113020.0,113010.0,0.62558739]
[1758557608670,0.45717233,113020.0,113010.0,0.65023739]
[1758557609128,0.45717233,113020.0,113010.0,0.34264739]
[1758557609129,0.78035708,113020.0,113010.0,0.34264739]
[1758557609293,1.12590183,113020.0,113010.0,0.62360739]
[1758557609494,0.80271708,113020.0,113010.0,0.62360739]
[1758557610325,0.47953233,113020.0,113010.0,0.62360739]
[1758557610531,1.12366183,113020.0,113010.0,0.62360739]
[1758557610985,1.10354183,113020.0,113010.0,0.62558739]
[1758557611245,0.77823708,113020.0,113010.0,0.62864739]
[1758557611467,0.45505233,113020.0,113010.0,0.65329739]
[1758557612296,0.77823708,113020.0,113010.0,0.65329739]
[1758557613324,0.77203168,113020.0,113010.0,0.65329739]
[1758557614305,0.32323168,113020.0,113010.0,0.65329739]
[1758557617722,4.693e-05,113020.0,113010.0,0.65329739]
[1758557617944,0.32323168,113020.0,113010.0,0.65329739]
[1758557619840,4.693e-05,113020.0,113010.0,0.65329739]
[1758557620469,4.693e-05,113020.0,113010.0,0.97644953]
[1758557620883,4.693e-05,113020.0,113010.0,1.00660143]
[1758557621096,4.693e-05,113020.0,113010.0,0.68344929]
[1758557621341,4.693e-05,113020.0,113010.0,1.00660143]
[1758557622022,4.693e-05,113020.0,113010.0,0.68344929]
[1758557622232,4.693e-05,113020.0,113010.0,1.00660143]
[1758557624941,4.693e-05,113020.0,113010.0,1.10220143]
[1758557626663,4.693e-05,113020.0,113010.0,0.72564143]
[1758557627066,4.693e-05,113020.0,113010.0,0.77904929]
[1758557627272,4.693e-05,113020.0,113010.0,1.10220143]
[1758557627482,4.693e-05,113020.0,113010.0,0.72564143]
[1758557627876,4.693e-05,113020.0,113010.0,1.10220143]
[1758557629279,4.693e-05,113020.0,113010.0,0.72564143]
[1758557629678,0.32517907,113020.0,113010.0,0.74935929]
[1758557629885,0.34767907,113020.0,113010.0,0.71920739]
[1758557630127,0.34529907,113020.0,113010.0,0.71920739]
[1758557631000,0.32517907,113020.0,113010.0,0.71920739]
[1758557631859,0.32517907,113020.0,113010.0,0.74889739]
[1758557632076,4.693e-05,113020.0,113010.0,0.74889739]
[1758557633831,0.32319907,113020.0,113010.0,0.74889739]
[1758557634025,4.693e-05,113020.0,113010.0,0.74889739]
[1758557634297,4.693e-05,113020.0,113010.0,1.07204953]
[1758557634505,4.693e-05,113020.0,113010.0,0.74889739]
[1758557635234,4.693e-05,113020.0,113010.0,0.74885739]
[1758557635450,0.32319907,113020.0,113010.0,0.74885739]
[1758557635661,4.693e-05,113020.0,113010.0,0.74885739]
[1758557636726,4.693e-05,113020.0,113010.0,0.65321739]
[1758557636941,0.00202693,113020.0,113010.0,0.74885739]
[1758557637148,4.693e-05,113020.0,113010.0,0.74885739]
[1758557637360,0.32517907,113020.0,113010.0,0.34462739]
[1758557637565,0.34529907,113020.0,113010.0,0.34264739]
[1758557637775,0.34529907,113020.0,113010.0,0.62352739]
[1758557637997,0.32517907,113020.0,113010.0,0.62352739]
[1758557638214,0.34529907,113020.0,113010.0,0.34264739]
[1758557638421,0.34529907,113020.0,113010.0,0.62352739]
[1758557638842,0.66845121,113020.0,113010.0,0.62352739]
[1758557639049,0.34529907,113020.0,113010.0,0.62352739]
[1758557640135,0.32517907,113020.0,113010.0,0.62549739]
[1758557640344,0.32517907,113020.0,113010.0,0.64832739]
[1758557640584,0.32517907,113020.0,113010.0,0.65137739]
[1758557642257,0.00202693,113020.0,113010.0,0.65137739]
[1758557642457,0.32517907,113020.0,113010.0,0.65137739]
[1758557643713,0.00202693,113020.0,113010.0,0.64832739]
[1758557643850,0.00202693,113020.0,113010.0,0.64635739]
[1758557643851,0.32517907,113020.0,113010.0,0.64635739]
[1758557644058,0.32517907,113020.0,113010.0,0.64832739]
[1758557644507,0.32517907,113020.0,113010.0,0.65137739]
[1758557644696,0.43295822,113020.0,113010.0,0.65137739]
[1758557646272,0.00202693,113020.0,113010.0,0.65137739]
[1758557647016,4.693e-05,113020.0,113010.0,0.65137739]
[1758557651966,4.693e-05,113020.0,113010.0,0.65129739]
[1758557652656,4.693e-05,113020.0,113010.0,0.37049739]
[1758557652869,4.693e-05,113020.0,113010.0,0.65129739]
[1758557653702,4.693e-05,113020.0,113010.0,0.37049739]
[1758557653937,4.693e-05,113020.0,113010.0,0.65129739]
[1758557658240,4.693e-05,113020.0,113010.0,1.11238058]
[1758557658476,4.693e-05,113020.0,113010.0,1.55238058]
[1758557658701,0.0004,113060.0,113050.0,0.17691287]
[1758557658926,0.00044693,113060.0,113050.0,0.54294254]
[1758557659362,0.00044693,113060.0,113050.0,0.57221254]
[1758557659620,0.00044693,113060.0,113050.0,0.54294254]
[1758557659621,0.45349822,113060.0,113050.0,0.54294254]
[1758557660039,0.63680544,113060.0,113050.0,0.54294254]
[1758557660243,0.63680544,113060.0,113050.0,0.26218254]
[1758557660459,0.63680544,113060.0,113050.0,0.08526967]
[1758557660676,1.01318923,113060.0,113050.0,0.28076]
[1758557660896,1.01318923,113060.0,113040.0,0.17691445]
[1758557661105,1.01318923,113060.0,113040.0,0.26218412]
[1758557661106,0.60784416,113050.0,113040.0,0.26218412]
[1758557661320,0.63037416,113050.0,113040.0,0.54294412]
[1758557661474,0.45546129,113050.0,113040.0,0.26218412]
[1758557661660,0.63237416,113050.0,113040.0,0.54294412]
[1758557662083,0.45546129,113050.0,113040.0,0.54294412]
[1758557662333,0.63237416,113050.0,113040.0,0.54294412]
[1758557662716,0.63237416,113050.0,113040.0,0.54394412]
[1758557663651,0.63237416,113050.0,113040.0,0.61023907]
[1758557664056,0.63237416,113050.0,113040.0,0.32947907]
[1758557664260,0.19903287,113050.0,113040.0,0.32947907]
[1758557664469,0.19903287,113050.0,113040.0,0.61019907]
[1758557664470,0.62996416,113050.0,113040.0,0.61019907]
[1758557665083,0.62996416,113050.0,113040.0,0.32947907]
[1758557665282,0.63237416,113050.0,113040.0,0.61021314]
[1758557666456,0.63237416,113050.0,113040.0,0.32949314]
[1758557666711,0.63237416,113050.0,113040.0,0.61021314]
[1758557667300,0.63237416,113050.0,113040.0,0.32949314]
[1758557667514,0.63237416,113050.0,113040.0,0.61021314]
[1758557668120,0.62996416,113050.0,113040.0,0.61021314]
[1758557669335,1.07876416,113050.0,113040.0,0.61021314]
[1758557671507,1.07876416,113050.0,113040.0,0.61017314]
[1758557671709,0.47092,113050.0,113040.0,0.61017314]
[1758557671923,0.90185129,113050.0,113040.0,0.61017314]
[1758557672154,1.07876416,113050.0,113040.0,0.61017314]
[1758557673916,1.07876416,113050.0,113040.0,0.32949314]
[1758557674115,1.07876416,113050.0,113040.0,0.61013314]
[1758557674521,1.08117416,113050.0,113040.0,0.32949314]
[1758557674791,1.08117416,113050.0,113040.0,0.61013314]
[1758557675145,0.64783287,113050.0,113040.0,0.61013314]
[1758557675376,1.07876416,113050.0,113040.0,0.32949314]
[1758557675547,1.08117416,113050.0,113040.0,0.61013314]
[1758557675915,1.05864416,113050.0,113040.0,0.61013314]
[1758557676531,0.62771287,113050.0,113040.0,0.61013314]
[1758557676734,1.05864416,113050.0,113040.0,0.61013314]
[1758557677235,1.05864416,113050.0,113040.0,0.61221314]
[1758557678605,2.13274545,113050.0,113040.0,0.001]
[1758557678819,2.15934448,113050.0,113040.0,0.001]
[1758557681495,2.55800338,113050.0,113040.0,0.001]
[1758557681720,2.51737743,113050.0,113040.0,0.001]
[1758557682171,2.16939547,113050.0,113040.0,0.001]
[1758557682455,0.17695983,113020.0,113010.0,0.30115614]
[1758557682670,0.17695983,113020.0,113010.0,0.20268191]
[1758557682671,0.60789112,113020.0,113010.0,0.20268191]
[1758557682883,0.60789112,113020.0,113010.0,0.17803191]
[1758557683103,0.60858112,113020.0,113010.0,0.20268191]
[1758557683309,0.60858112,113020.0,113010.0,0.37965739]
[1758557683510,0.60789112,113020.0,113010.0,0.37965739]
[1758557684086,0.60789112,113020.0,113010.0,0.35753739]
[1758557684500,0.60789112,113020.0,113010.0,0.36453739]
[1758557684698,0.60789112,113020.0,113010.0,0.57977515]
[1758557684912,0.60789112,113020.0,113010.0,0.40679967]
[1758557685116,0.60789112,113020.0,113010.0,0.58377515]
[1758557687448,0.43093129,113020.0,113010.0,0.58377515]
[1758557687664,0.60789112,113020.0,113010.0,0.58377515]
[1758557692083,0.60789112,113020.0,113010.0,0.40679967]
[1758557692294,0.60789112,113020.0,113010.0,0.58377515]
[1758557693475,0.60789112,113020.0,113010.0,0.30313515]
[1758557693671,0.60789112,113020.0,113010.0,0.58377515]
[1758557694541,0.17695983,113020.0,113010.0,0.58377515]
[1758557694789,0.60789112,113020.0,113010.0,0.58377515]
[1758557695446,0.94789112,113020.0,113010.0,0.55912515]
[1758557695624,0.94789112,113020.0,113010.0,0.58377515]
[1758557696583,0.94789112,113020.0,113010.0,0.30313515]
[1758557696781,0.94789112,113020.0,113010.0,0.58377515]
[1758557697645,0.94789112,113020.0,113010.0,0.30313515]
[1758557697959,0.94789112,113020.0,113010.0,0.58377515]
[1758557698402,0.94789112,113020.0,113010.0,0.30313515]
[1758557698587,0.96913112,113020.0,113010.0,0.2916]
[1758557698802,0.99573556,113020.0,113010.0,0.2916]
[1758557699093,0.99530556,113020.0,113010.0,0.2916]
[1758557699337,0.99530556,113020.0,113010.0,0.2876]
[1758557700268,0.99530556,113020.0,113010.0,0.2806]
[1758557700492,0.99530556,113020.0,113010.0,0.2836]
[1758557700691,0.99530556,113020.0,113010.0,0.2856]
[1758557700973,0.97449556,113020.0,113010.0,0.2856]
[1758557701188,0.97449556,113020.0,113010.0,0.31395]
[1758557702119,0.97518556,113020.0,113010.0,0.31395]
[1758557702349,0.97518556,113020.0,113010.0,0.2856]
[1758557702568,0.99530556,113020.0,113010.0,0.2856]
[1758557704607,1.21096787,113020.0,113010.0,0.2856]
[1758557705457,1.21096787,113020.0,113010.0,0.005]
[1758557705657,1.53469467,113020.0,113010.0,0.005]
[1758557706615,1.81529467,113020.0,113010.0,0.005]
[1758557707211,1.82150849,113020.0,113010.0,0.003]
[1758557707411,0.17699115,113000.0,112990.0,0.23813691]
[1758557707612,0.82358475,113000.0,112990.0,0.32552351]
[1758557708087,0.82358475,113000.0,112990.0,0.55703351]
[1758557708256,0.85465451,113000.0,112990.0,0.58012351]
[1758557708399,0.85465451,113000.0,112990.0,0.3942666]
[1758557708615,0.85534451,113000.0,112990.0,0.3769166]
[1758557708818,0.87546451,113000.0,112990.0,0.3769166]
[1758557709270,1.21546451,113000.0,112990.0,0.01104693]
[1758557709894,1.24207307,113000.0,112990.0,0.01104693]
[1758557710108,1.24207307,113000.0,112990.0,0.00704693]
[1758557710329,1.24207307,113000.0,112990.0,0.00204693]
[1758557710771,1.57201667,113000.0,112990.0,0.00504693]
[1758557710965,1.57201667,113000.0,112990.0,0.00304693]
[1758557710966,1.24871987,113000.0,112990.0,0.00304693]
[1758557711221,1.24871987,113000.0,112990.0,0.00504693]
[1758557711421,1.52884987,113000.0,112990.0,0.00504693]
[1758557712903,1.50872987,113000.0,112990.0,0.00504693]
[1758557713151,1.50872987,113000.0,112990.0,0.00711693]
[1758557713362,1.50872987,113000.0,112990.0,0.01030693]
[1758557713743,1.50872987,113000.0,112990.0,0.00711693]
[1758557713944,1.22747987,113000.0,112990.0,0.00711693]
[1758557714189,1.50803987,113000.0,112990.0,0.03339693]
[1758557715775,1.50872987,113000.0,112990.0,0.03339693]
[1758557719118,1.22816987,113000.0,112990.0,0.03339693]
[1758557719326,1.50872987,113000.0,112990.0,0.03339693]
[1758557721242,1.50872987,113000.0,112990.0,0.00504693]
[1758557721447,1.85214667,113000.0,112990.0,0.00504693]
[1758557721661,1.55146667,113000.0,112990.0,0.00504693]
[1758557721882,1.22816987,113000.0,112990.0,0.00701693]
[1758557722086,1.50872987,113000.0,112990.0,0.00701693]
[1758557722765,1.52884987,113000.0,112990.0,0.00504693]
[1758557723450,1.52884235,113000.0,112990.0,0.00504693]
[1758557726886,1.52880235,113000.0,112990.0,0.00504693]
[1758557727114,1.50868235,113000.0,112990.0,0.00504693]
[1758557727313,1.52880235,113000.0,112990.0,0.00504693]
[1758557727526,1.50868235,113000.0,112990.0,0.00712693]
[1758557727941,1.52880235,113000.0,112990.0,0.00504693]
[1758557728785,1.50868235,113000.0,112990.0,0.00712693]
[1758557729430,1.50816968,113000.0,112990.0,0.00712693]
[1758557729696,1.52828968,113000.0,112990.0,0.00712693]
[1758557730455,1.52824968,113000.0,112990.0,0.00712693]
[1758557730655,1.52824968,113000.0,112990.0,0.60712693]
[1758557730866,1.52824968,113000.0,112990.0,0.60504693]
[1758557732121,1.50812968,113000.0,112990.0,0.60712693]
[1758557732336,1.50812968,113000.0,112990.0,0.61018693]
[1758557732536,0.58105608,113000.0,112990.0,0.61018693]
[1758557732735,0.58105608,113000.0,112990.0,0.63486693]
[1758557732736,1.22695968,113000.0,112990.0,0.63486693]
[1758557732999,1.22695968,113000.0,112990.0,0.81187374]
[1758557733402,0.58036608,113000.0,112990.0,0.81187374]
[1758557733606,1.22695968,113000.0,112990.0,0.81187374]
[1758557734572,0.37676637,113000.0,112990.0,1.22044021]
[1758557734840,0.03055709,113000.0,112990.0,1.22044021]
[1758557734978,0.03055709,113000.0,112990.0,0.89714341]
[1758557735187,0.6632968,113010.0,113000.0,0.17699115]
[1758557735392,0.66951568,113010.0,113000.0,0.48729115]
[1758557735616,0.66951568,113010.0,113000.0,0.57256082]
[1758557736026,0.377236,113010.0,113000.0,0.57256082]
[1758557736226,0.69431392,113010.0,113000.0,0.57256082]
[1758557736471,0.69431392,113010.0,113000.0,0.57356082]
[1758557736868,0.8712894,113010.0,113000.0,0.57356082]
[1758557737074,0.37101712,113010.0,113000.0,0.57356082]
[1758557737284,0.69431392,113010.0,113000.0,0.57356082]
[1758557737497,0.37101712,113010.0,113000.0,0.57256082]
[1758557738128,0.69431392,113010.0,113000.0,0.57556082]
[1758557738347,0.03101712,113010.0,113000.0,0.89885762]
[1758557738558,0.03101712,113010.0,113000.0,0.57556082]
[1758557738757,0.6632968,113020.0,113010.0,0.17697548]
[1758557738987,0.6632968,113020.0,113010.0,0.26224515]
[1758557739194,0.69360781,113020.0,113010.0,0.29206515]
[1758557739402,0.35360781,113020.0,113010.0,0.29206515]
[1758557739580,0.35360781,113020.0,113010.0,0.57250515]
[1758557739854,0.3232968,113020.0,113010.0,0.57250515]
[1758557740271,0.3232968,113020.0,113010.0,0.57346515]
[1758557740457,0.3232968,113020.0,113010.0,0.29306515]
[1758557741046,0.50025663,113020.0,113010.0,0.29306515]
[1758557741254,0.50025663,113020.0,113010.0,0.57346515]
[1758557741464,0.3232968,113020.0,113010.0,0.57346515]
[1758557741640,0.82355343,113020.0,113010.0,0.57346515]
[1758557742041,0.82355343,113020.0,113010.0,0.29306515]
[1758557742256,0.82355343,113020.0,113010.0,0.57346515]
[1758557742659,0.82355343,113020.0,113010.0,0.39648967]
[1758557742876,0.82355343,113020.0,113010.0,0.57346515]
[1758557743086,0.82355343,113020.0,113010.0,0.29306515]
[1758557743319,0.84436343,113020.0,113010.0,0.36662967]
[1758557743527,0.84436343,113020.0,113010.0,0.54360515]
[1758557743733,0.84436343,113020.0,113010.0,0.08626967]
[1758557743935,0.84436343,113020.0,113010.0,0.54360515]
[1758557744141,0.82424343,113020.0,113010.0,0.36662967]
[1758557744339,0.84436343,113020.0,113010.0,0.54360515]
[1758557745135,0.84436343,113020.0,113010.0,0.001]
[1758557745136,1.50809023,113020.0,113010.0,0.001]
[1758557745350,1.78845023,113020.0,113010.0,0.001]
[1758557746028,1.81505724,113020.0,113010.0,0.001]
[1758557746221,2.87021731,113020.0,113010.0,0.001]
[1758557746641,2.87642803,113020.0,113010.0,0.001]
[1758557746849,1.90653763,113020.0,113010.0,0.001]
[1758557747305,0.51699115,113000.0,112990.0,0.60004693]
[1758557747499,1.16427475,113000.0,112990.0,0.60004693]
[1758557747732,1.18439475,113000.0,112990.0,0.60004693]
[1758557748152,1.21100386,113000.0,112990.0,0.60004693]
[1758557749233,1.21100386,113000.0,112990.0,0.60204693]
[1758557749423,1.21100386,113000.0,112990.0,0.60504693]
[1758557750200,1.49132386,113000.0,112990.0,0.60504693]
[1758557751040,1.21100386,113000.0,112990.0,0.60504693]
[1758557751246,1.49132386,113000.0,112990.0,0.60504693]
[1758557752281,1.81505066,113000.0,112990.0,0.60504693]
[1758557752480,1.53473066,113000.0,112990.0,0.60504693]
[1758557752686,1.81505066,113000.0,112990.0,0.60504693]
[1758557754167,1.53430066,113000.0,112990.0,0.60504693]
[1758557754412,1.49132386,113000.0,112990.0,0.60504693]
[1758557755032,1.81462066,113000.0,112990.0,0.60504693]
[1758557755435,1.53430066,113000.0,112990.0,0.60504693]
[1758557755879,1.81462066,113000.0,112990.0,0.60504693]
[1758557756092,1.49132386,113000.0,112990.0,0.60504693]
[1758557758834,1.81462066,113000.0,112990.0,0.60504693]
[1758557759004,1.53430066,113000.0,112990.0,0.60504693]
[1758557759569,1.81458066,113000.0,112990.0,0.60504693]
[1758557761615,1.81501066,113000.0,112990.0,0.60504693]
[1758557761821,1.53473066,113000.0,112990.0,0.60504693]
[1758557762025,1.81501066,113000.0,112990.0,0.60504693]
[1758557762254,1.53430066,113000.0,112990.0,0.60504693]
[1758557762472,1.51349066,113000.0,112990.0,0.60719693]
[1758557762693,1.47047386,113000.0,112990.0,0.61026693]
[1758557762900,1.19019386,113000.0,112990.0,0.63515693]
[1758557763120,0.82388026,113000.0,112990.0,0.63515693]
[1758557763330,1.47116386,113000.0,112990.0,0.63208693]
[1758557763563,1.1524208,113000.0,112990.0,0.91236693]
[1758557763783,1.1517308,113000.0,112990.0,0.91543693]
[1758557763993,0.7854172,113000.0,112990.0,1.09244374]
[1758557764199,1.1517308,113000.0,112990.0,0.91543693]
[1758557764629,1.36756836,113000.0,112990.0,0.91543693]
[1758557764874,1.64853836,113000.0,112990.0,0.60504693]
[1758557765109,1.66865836,113000.0,112990.0,0.60504693]
[1758557765775,1.64849836,113000.0,112990.0,0.61026693]
[1758557765984,1.64780836,113000.0,112990.0,0.63515693]
[1758557767099,1.36825836,113000.0,112990.0,0.63515693]
[1758557767308,1.64849836,113000.0,112990.0,0.63515693]
[1758557768139,1.36825836,113000.0,112990.0,0.63515693]
[1758557768349,1.64849836,113000.0,112990.0,0.63208693]
[1758557770055,1.64849836,113000.0,112990.0,0.63515693]
[1758557770315,1.64849836,113000.0,112990.0,0.60719693]
[1758557771983,1.66861836,113000.0,112990.0,0.88524693]
[1758557773847,1.66861836,113000.0,112990.0,0.60504693]
[1758557774504,1.66904836,113000.0,112990.0,0.60504693]
[1758557774922,1.66861836,113000.0,112990.0,0.60504693]
[1758557775341,1.67484361,113000.0,112990.0,0.60504693]
[1758557775947,1.65472361,113000.0,112990.0,0.60504693]
[1758557776171,1.67484361,113000.0,112990.0,0.60504693]
[1758557777971,1.66861836,113000.0,112990.0,0.60504693]
[1758557778211,1.67484517,113000.0,112990.0,0.60504693]
[1758557779020,1.67484517,113000.0,112990.0,0.60716693]
[1758557782027,1.65472517,113000.0,112990.0,0.60716693]
[1758557784492,1.67484517,113000.0,112990.0,0.60504693]
[1758557786110,1.67527517,113000.0,112990.0,0.60504693]
[1758557786363,1.67484517,113000.0,112990.0,0.60504693]
[1758557786565,1.65472517,113000.0,112990.0,0.60716693]
[1758557786977,1.65391517,113000.0,112990.0,0.61014693]
[1758557787183,1.65391517,113000.0,112990.0,0.63301693]
[1758557787398,1.37379517,113000.0,112990.0,0.63301693]
[1758557787617,1.65391517,113000.0,112990.0,0.63301693]
[1758557789619,1.65460517,113000.0,112990.0,0.63301693]
[1758557790533,1.65460517,113000.0,112990.0,0.61014693]
[1758557791182,1.65460517,113000.0,112990.0,0.60504693]
[1758557791429,1.67515517,113000.0,112990.0,0.60504693]
[1758557792306,1.67515599,113000.0,112990.0,0.60504693]
[1758557792533,1.76042566,113000.0,112990.0,0.60504693]
[1758557793694,1.78533605,113000.0,112990.0,0.60504693]
[1758557794024,1.50521605,113000.0,112990.0,0.60504693]
[1758557794260,2.96788166,113000.0,112990.0,0.60504693]
[1758557794472,3.39909724,113000.0,112990.0,0.60504693]
[1758557794676,2.96788166,113000.0,112990.0,0.60504693]
[1758557795092,3.39909724,113000.0,112990.0,0.60504693]
[1758557795316,2.96788166,113000.0,112990.0,0.60504693]
[1758557795560,3.4478783,113000.0,112990.0,0.60504693]
[1758557796029,3.44787457,113000.0,112990.0,0.60304693]
[1758557796263,3.44786837,113000.0,112990.0,0.60004693]
[1758557796678,3.46957361,113000.0,112990.0,0.12283936]
[1758557796885,2.75827803,113000.0,112990.0,0.12283936]
[1758557797064,3.11536887,113000.0,112990.0,0.10537941]
[1758557797273,3.11336887,113000.0,112990.0,0.10537941]
[1758557797509,3.13199803,113000.0,112990.0,0.10537941]
[1758557797696,3.13899803,113000.0,112990.0,0.10537941]
[1758557798196,3.57021361,113000.0,112990.0,0.10537941]
[1758557798412,3.13899803,113000.0,112990.0,0.10537941]
[1758557799820,3.12129279,113000.0,112990.0,0.10537941]
[1758557801474,3.10266363,113000.0,112990.0,0.10537941]
[1758557801922,2.72694363,113000.0,112990.0,0.10203512]
[1758557802066,3.10270363,113000.0,112990.0,0.10203512]
[1758557804200,1.29500294,112980.0,112970.0,0.0268]